fUST/lending_fUST_20240201
["ID","MTS","AMOUNT","RATE_DAILY","PERIOD"]
[313070226,1706716817653,155.0,0.00016999,3]
[313070228,1706716824262,280.0,0.00022856,7]
[313070235,1706716839656,155.0,0.00017255,3]
[313070243,1706716857659,155.0,0.00017255,3]
[313070246,1706716864784,181.26836622,0.00017254,2]
[313070252,1706716877665,155.0,0.00017255,3]
[313070260,1706716893667,155.0,0.00017255,3]
[313070262,1706716915767,155.0,0.00016992,3]
[313070265,1706716931672,155.0,0.00016992,3]
[313070267,1706716949671,155.0,0.00016992,3]
[313070270,1706716969682,155.0,0.00017258,3]
[313070273,1706716979013,24900.0,0.00017883,2]
[313070274,1706716989684,155.0,0.00016988,3]
[313070277,1706717013686,155.0,0.00016988,3]
[313070278,1706717031693,155.0,0.00016985,3]
[313070279,1706717047709,155.0,0.00016985,3]
[313070282,1706717067692,155.0,0.00016985,3]
[313070284,1706717085691,155.0,0.00016979,3]
[313070286,1706717103696,155.0,0.00016979,3]
[313070287,1706717125176,280.0,0.00022829,7]
[313070288,1706717125701,155.0,0.00016979,3]
[313070289,1706717143695,155.0,0.00017258,3]
[313070292,1706717161723,155.0,0.00016978,3]
[313070293,1706717175705,155.0,0.00016978,3]
[313070295,1706717195706,155.0,0.00016978,3]
[313070297,1706717213728,155.0,0.00017258,3]
[313070310,1706717235740,155.0,0.00016878,3]
[313070315,1706717257724,155.0,0.00016878,3]
[313070321,1706717273718,155.0,0.00016875,3]
[313070324,1706717295730,155.0,0.00016875,3]
[313070325,1706717307103,535.60419036,0.00016878,2]
[313070326,1706717313755,155.0,0.00016875,3]
[313070327,1706717323327,237045.20687935,0.00016875,2]
[313070328,1706717331725,155.0,0.00016875,3]
[313070330,1706717347723,155.0,0.00016872,3]
[313070334,1706717369735,155.0,0.00016872,3]
[313070341,1706717391725,155.0,0.00016872,3]
[313070345,1706717407854,155.0,0.00016867,3]
[313070346,1706717421174,15385.1430398,0.00017745,2]
[313070348,1706717425408,280.0,0.00022678,7]
[313070349,1706717425735,155.0,0.00016867,3]
[313070379,1706717432152,-1996.50298693,0.00018739,2]
[313070380,1706717432162,-155.0,0.00018739,2]
[313070381,1706717432172,-155.0,0.00018739,2]
[313070382,1706717432181,-155.0,0.0001874,2]
[313070383,1706717432191,-155.0,0.0001874,2]
[313070384,1706717432200,-155.0,0.00018741,2]
[313070385,1706717432209,-2042.05188148,0.00018741,2]
[313070386,1706717432220,-260.71148909,0.00018742,2]
[313070387,1706717432230,-167.27020705,0.00018742,2]
[313070388,1706717432240,-37015.11340777,0.00018743,2]
[313070389,1706717432249,-20902.32807036,0.00018744,2]
[313070390,1706717432259,-653.72671983,0.00018748,2]
[313070391,1706717432269,-170.0,0.00018753,2]
[313070392,1706717432282,-162.21176965,0.0001876,2]
[313070393,1706717432291,-162.21176964,0.00018839,2]
[313070394,1706717432300,-425.26243126,0.00018865,2]
[313070395,1706717432312,-214.31553565,0.00018872,2]
[313070396,1706717432322,-164.49311095,0.00018872,2]
[313070397,1706717432332,-1042.0,0.00018873,2]
[313070398,1706717432341,-270.48417093,0.00018873,2]
[313070399,1706717432351,-673.69184769,0.00018899,2]
[313070400,1706717432360,-150.0,0.000189,2]
[313070401,1706717432373,-162.21176964,0.00018918,2]
[313070402,1706717432383,-162.21176964,0.00018997,2]
[313070403,1706717432392,-162.21176964,0.00019076,2]
[313070404,1706717432402,-180.27136489,0.00019078,2]
[313070405,1706717432411,-172.88934634,0.00019173,2]
[313070406,1706717432421,-3749.82412909,0.00019175,2]
[313070407,1706717432431,-4815.48756164,0.00019175,2]
[313070408,1706717432441,-166.87686881,0.00019176,2]
[313070409,1706717432451,-10585.00506982,0.00019176,2]
[313070435,1706717438332,-1338.88503052,0.00019176,2]
[313070438,1706717438345,-1298.32209941,0.00019176,2]
[313070440,1706717438356,-1075.7914542,0.00019176,2]
[313070442,1706717438367,-373.13901918,0.00019176,2]
[313070444,1706717438376,-1557.14671443,0.00019177,2]
[313070446,1706717438386,-500.0,0.00019178,2]
[313070448,1706717438395,-500.0,0.00019178,2]
[313070450,1706717438404,-500.0,0.00019178,2]
[313070452,1706717438413,-549.68,0.00019178,2]
[313070454,1706717438423,-547.21,0.00019178,2]
[313070456,1706717438431,-500.0,0.00019178,2]
[313070458,1706717438440,-500.0,0.00019178,2]
[313070460,1706717438450,-1015.49,0.00019178,2]
[313070462,1706717438459,-500.0,0.00019178,2]
[313070464,1706717438467,-500.0,0.00019178,2]
[313070466,1706717438481,-500.0,0.00019178,2]
[313070468,1706717438491,-453.1775686,0.00019178,2]
[313070470,1706717438501,-500.0,0.00019178,2]
[313070472,1706717438510,-500.0,0.00019178,2]
[313070474,1706717438519,-500.0,0.00019178,2]
[313070476,1706717438527,-500.0,0.00019178,2]
[313070478,1706717438536,-500.0,0.00019178,2]
[313070480,1706717438545,-500.0,0.00019178,2]
[313070482,1706717438554,-1756.54,0.00019178,2]
[313070484,1706717438563,-500.0,0.00019178,2]
[313070486,1706717438572,-500.0,0.00019178,2]
[313070487,1706717438581,-416.8697277,0.00019178,2]
[313070489,1706717438591,-500.0,0.00019178,2]
[313070491,1706717438600,-2759.56,0.00019178,2]
[313070494,1706717438609,-342.75143032,0.00019178,2]
[313070495,1706717438618,-500.0,0.00019178,2]
[313070498,1706717438628,-991.7,0.00019178,2]
[313070500,1706717438637,-500.0,0.00019178,2]
[313070502,1706717438646,-500.0,0.00019178,2]
[313070503,1706717438655,-500.0,0.00019178,2]
[313070506,1706717438665,-1055.35,0.00019178,2]
[313070508,1706717438674,-500.0,0.00019178,2]
[313070509,1706717438683,-1130.01,0.00019178,2]
[313070511,1706717438692,-500.0,0.00019178,2]
[313070514,1706717438701,-500.0,0.00019178,2]
[313070515,1706717438712,-500.0,0.00019178,2]
[313070517,1706717438721,-500.0,0.00019178,2]
[313070519,1706717438730,-582.28,0.00019178,2]
[313070522,1706717438741,-1425.27,0.00019178,2]
[313070523,1706717438751,-500.0,0.00019178,2]
[313070525,1706717438760,-909.16,0.00019178,2]
[313070527,1706717438770,-673.78,0.00019178,2]
[313070529,1706717438779,-500.0,0.00019178,2]
[313070531,1706717438788,-1917.42,0.00019178,2]
[313070533,1706717438797,-424.25997704,0.00019178,2]
[313070536,1706717438808,-1182.09,0.00019178,2]
[313070538,1706717438818,-500.0,0.00019178,2]
[313070540,1706717438827,-1150.52,0.00019178,2]
[313070541,1706717438835,-1427.26,0.00019178,2]
[313070543,1706717438844,-500.0,0.00019178,2]
[313070545,1706717438853,-500.0,0.00019178,2]
[313070547,1706717438862,-1824.57,0.00019178,2]
[313070549,1706717438871,-3691.58,0.00019178,2]
[313070551,1706717438881,-1853.52,0.00019178,2]
[313070553,1706717438890,-500.0,0.00019178,2]
[313070555,1706717438899,-500.0,0.00019178,2]
[313070557,1706717438908,-500.0,0.00019178,2]
[313070559,1706717438917,-500.0,0.00019178,2]
[313070561,1706717438926,-500.0,0.00019178,2]
[313070562,1706717438936,-500.0,0.00019178,2]
[313070563,1706717438946,-250.07075875,0.00019178,2]
[313070564,1706717438955,-13584.93,0.00019178,2]
[313070565,1706717438965,-544.72,0.00019178,2]
[313070567,1706717438976,-821.54,0.00019178,2]
[313070568,1706717438985,-649.01,0.00019178,2]
[313070570,1706717438995,-6888.74,0.00019178,2]
[313070572,1706717439004,-500.0,0.00019178,2]
[313070574,1706717439013,-656.29,0.00019178,2]
[313070575,1706717439022,-6490.96,0.00019178,2]
[313070576,1706717439031,-10101.24,0.00019178,2]
[313070578,1706717439040,-1155.68,0.00019178,2]
[313070579,1706717439049,-500.0,0.00019178,2]
[313070580,1706717439058,-1175.27,0.00019178,2]
[313070581,1706717439068,-3321.3,0.00019178,2]
[313070582,1706717439077,-500.0,0.00019178,2]
[313070583,1706717439087,-500.0,0.00019178,2]
[313070584,1706717439098,-1024.47,0.00019178,2]
[313070585,1706717439107,-3043.92,0.00019178,2]
[313070586,1706717439116,-500.0,0.00019178,2]
[313070587,1706717439126,-2729.74,0.00019178,2]
[313070588,1706717439135,-1385.83,0.00019178,2]
[313070589,1706717439144,-913.85,0.00019178,2]
[313070590,1706717439153,-2327.8,0.00019178,2]
[313070591,1706717439164,-500.0,0.00019178,2]
[313070592,1706717439173,-508.12,0.00019178,2]
[313070593,1706717439183,-165.629362,0.00019178,2]
[313070594,1706717439192,-611.41552988,0.00019449,2]
[313070595,1706717439201,-199.43885115,0.00019451,2]
[313070596,1706717439211,-500.0,0.00019452,2]
[313070597,1706717439223,-500.0,0.00019452,2]
[313070598,1706717439232,-331.03874954,0.00019452,2]
[313070599,1706717439241,-549.68,0.00019452,2]
[313070600,1706717439250,-547.21,0.00019452,2]
[313070601,1706717439260,-500.0,0.00019452,2]
[313070602,1706717439269,-500.0,0.00019452,2]
[313070603,1706717439279,-1015.49,0.00019452,2]
[313070604,1706717439289,-500.0,0.00019452,2]
[313070605,1706717439390,-500.0,0.00019452,2]
[313070606,1706717439400,-500.0,0.00019452,2]
[313070607,1706717439409,-296.71682223,0.00019452,2]
[313070608,1706717439418,-500.0,0.00019452,2]
[313070609,1706717439427,-500.0,0.00019452,2]
[313070610,1706717439436,-500.0,0.00019452,2]
[313070611,1706717439445,-534.97764921,0.00019452,2]
[313070612,1706717439454,-500.0,0.00019452,2]
[313070613,1706717439463,-1756.54,0.00019452,2]
[313070614,1706717439473,-500.0,0.00019452,2]
[313070615,1706717439483,-500.0,0.00019452,2]
[313070616,1706717439492,-500.0,0.00019452,2]
[313070617,1706717439500,-2759.56,0.00019452,2]
[313070618,1706717439509,-500.0,0.00019452,2]
[313070619,1706717439519,-991.7,0.00019452,2]
[313070620,1706717439528,-427.04037808,0.00019452,2]
[313070621,1706717439537,-1055.35,0.00019452,2]
[313070622,1706717439546,-1130.01,0.00019452,2]
[313070623,1706717439556,-500.0,0.00019452,2]
[313070624,1706717439567,-423.32,0.00019452,2]
[313070625,1706717439577,-500.0,0.00019452,2]
[313070626,1706717439586,-582.28,0.00019452,2]
[313070627,1706717439595,-1425.27,0.00019452,2]
[313070628,1706717439604,-500.0,0.00019452,2]
[313070629,1706717439613,-909.16,0.00019452,2]
[313070631,1706717439622,-673.78,0.00019452,2]
[313070633,1706717439631,-500.0,0.00019452,2]
[313070634,1706717439640,-1917.42,0.00019452,2]
[313070635,1706717439649,-1182.09,0.00019452,2]
[313070636,1706717439658,-500.0,0.00019452,2]
[313070637,1706717439667,-1150.52,0.00019452,2]
[313070638,1706717439676,-1427.26,0.00019452,2]
[313070639,1706717439685,-500.0,0.00019452,2]
[313070640,1706717439694,-500.0,0.00019452,2]
[313070641,1706717439703,-1824.57,0.00019452,2]
[313070642,1706717439712,-3691.58,0.00019452,2]
[313070643,1706717439722,-1853.52,0.00019452,2]
[313070644,1706717439731,-500.0,0.00019452,2]
[313070645,1706717439740,-500.0,0.00019452,2]
[313070646,1706717439749,-500.0,0.00019452,2]
[313070647,1706717439759,-500.0,0.00019452,2]
[313070648,1706717439768,-500.0,0.00019452,2]
[313070649,1706717439777,-500.0,0.00019452,2]
[313070650,1706717439786,-13584.93,0.00019452,2]
[313070651,1706717439795,-544.72,0.00019452,2]
[313070652,1706717439803,-821.54,0.00019452,2]
[313070653,1706717439811,-649.01,0.00019452,2]
[313070654,1706717439820,-6888.74,0.00019452,2]
[313070655,1706717439829,-500.0,0.00019452,2]
[313070656,1706717439838,-656.29,0.00019452,2]
[313070657,1706717439847,-6490.96,0.00019452,2]
[313070658,1706717439857,-10101.24,0.00019452,2]
[313070659,1706717439866,-1155.68,0.00019452,2]
[313070660,1706717439875,-1175.27,0.00019452,2]
[313070661,1706717439884,-3321.3,0.00019452,2]
[313070662,1706717439893,-500.0,0.00019452,2]
[313070663,1706717439902,-1024.47,0.00019452,2]
[313070664,1706717439912,-3043.92,0.00019452,2]
[313070665,1706717439922,-500.0,0.00019452,2]
[313070666,1706717439931,-2729.74,0.00019452,2]
[313070667,1706717439940,-1385.83,0.00019452,2]
[313070668,1706717439950,-913.85,0.00019452,2]
[313070669,1706717439959,-2327.8,0.00019452,2]
[313070670,1706717439968,-500.0,0.00019452,2]
[313070671,1706717439979,-508.12,0.00019452,2]
[313070672,1706717439988,-3326.30778329,0.00019527,2]
[313070673,1706717439998,-225.62064487,0.00019723,2]
[313070674,1706717440007,-161.15953298,0.00019723,2]
[313070675,1706717440016,-619.87708183,0.00019723,2]
[313070676,1706717440026,-155.06542336,0.00019724,2]
[313070677,1706717440035,-290.11392812,0.00019724,2]
[313070678,1706717440044,-198.75627546,0.00019724,2]
[313070679,1706717440054,-2105.3133158,0.00019724,2]
[313070680,1706717440062,-1697.2441966,0.00019724,2]
[313070681,1706717440071,-268.25200075,0.00019724,2]
[313070682,1706717440080,-213.595546,0.00019724,2]
[313070683,1706717440089,-203.07873463,0.00019724,2]
[313070684,1706717440098,-230.81497573,0.00019724,2]
[313070685,1706717440107,-190.36761948,0.00019724,2]
[313070686,1706717440116,-642.42435849,0.00019724,2]
[313070687,1706717440126,-5175.97265662,0.00019724,2]
[313070688,1706717440135,-262.54949426,0.00019724,2]
[313070689,1706717440144,-155.23133535,0.00019724,2]
[313070690,1706717440153,-157.59652551,0.00019724,2]
[313070691,1706717440165,-384.64697665,0.00019724,2]
[313070692,1706717440174,-159.22842716,0.00019724,2]
[313070693,1706717440183,-279.52693458,0.00019724,2]
[313070694,1706717440192,-20915.89787581,0.00019724,2]
[313070695,1706717440201,-687.53833928,0.00019724,2]
[313070696,1706717440210,-155.51073257,0.00019724,2]
[313070697,1706717440219,-15580.28525826,0.00019725,2]
[313070698,1706717440231,-500.0,0.00019726,2]
[313070699,1706717440241,-500.0,0.00019726,2]
[313070700,1706717440250,-549.68,0.00019726,2]
[313070701,1706717440259,-547.21,0.00019726,2]
[313070702,1706717440270,-500.0,0.00019726,2]
[313070703,1706717440282,-372.95353061,0.00019726,2]
[313070705,1706717440293,-1015.49,0.00019726,2]
[313070707,1706717440302,-500.0,0.00019726,2]
[313070709,1706717440310,-500.0,0.00019726,2]
[313070711,1706717440318,-500.0,0.00019726,2]
[313070713,1706717440328,-500.0,0.00019726,2]
[313070714,1706717440337,-500.0,0.00019726,2]
[313070715,1706717440346,-500.0,0.00019726,2]
[313070716,1706717440355,-500.0,0.00019726,2]
[313070717,1706717440367,-1756.54,0.00019726,2]
[313070718,1706717440376,-500.0,0.00019726,2]
[313070719,1706717440386,-500.0,0.00019726,2]
[313070720,1706717440395,-500.0,0.00019726,2]
[313070721,1706717440403,-2759.56,0.00019726,2]
[313070722,1706717440412,-500.0,0.00019726,2]
[313070723,1706717440420,-991.7,0.00019726,2]
[313070724,1706717440430,-1055.35,0.00019726,2]
[313070725,1706717440439,-1130.01,0.00019726,2]
[313070726,1706717440448,-500.0,0.00019726,2]
[313070727,1706717440457,-500.0,0.00019726,2]
[313070728,1706717440466,-582.28,0.00019726,2]
[313070729,1706717440476,-1425.27,0.00019726,2]
[313070730,1706717440485,-258.58735297,0.00019726,2]
[313070731,1706717440494,-909.16,0.00019726,2]
[313070732,1706717440503,-673.78,0.00019726,2]
[313070733,1706717440512,-500.0,0.00019726,2]
[313070734,1706717440521,-1917.42,0.00019726,2]
[313070735,1706717440530,-1182.09,0.00019726,2]
[313070736,1706717440539,-500.0,0.00019726,2]
[313070737,1706717440547,-1150.52,0.00019726,2]
[313070738,1706717440557,-1427.26,0.00019726,2]
[313070739,1706717440566,-500.0,0.00019726,2]
[313070740,1706717440575,-500.0,0.00019726,2]
[313070741,1706717440584,-1824.57,0.00019726,2]
[313070742,1706717440593,-3691.58,0.00019726,2]
[313070743,1706717440602,-1853.52,0.00019726,2]
[313070744,1706717440611,-500.0,0.00019726,2]
[313070745,1706717440620,-500.0,0.00019726,2]
[313070746,1706717440628,-500.0,0.00019726,2]
[313070747,1706717440637,-500.0,0.00019726,2]
[313070748,1706717440646,-500.0,0.00019726,2]
[313070749,1706717440655,-500.0,0.00019726,2]
[313070750,1706717440664,-13584.93,0.00019726,2]
[313070751,1706717440673,-544.72,0.00019726,2]
[313070752,1706717440682,-821.54,0.00019726,2]
[313070753,1706717440691,-649.01,0.00019726,2]
[313070754,1706717440700,-6888.74,0.00019726,2]
[313070755,1706717440709,-500.0,0.00019726,2]
[313070756,1706717440718,-656.29,0.00019726,2]
[313070757,1706717440729,-6490.96,0.00019726,2]
[313070758,1706717440737,-10101.24,0.00019726,2]
[313070759,1706717440746,-1155.68,0.00019726,2]
[313070760,1706717440755,-1175.27,0.00019726,2]
[313070761,1706717440764,-3321.3,0.00019726,2]
[313070762,1706717440774,-500.0,0.00019726,2]
[313070763,1706717440783,-1024.47,0.00019726,2]
[313070764,1706717440793,-3043.92,0.00019726,2]
[313070765,1706717440804,-500.0,0.00019726,2]
[313070766,1706717440813,-2729.74,0.00019726,2]
[313070767,1706717440822,-1385.83,0.00019726,2]
[313070768,1706717440831,-913.85,0.00019726,2]
[313070769,1706717440840,-2327.8,0.00019726,2]
[313070770,1706717440849,-500.0,0.00019726,2]
[313070771,1706717440857,-508.12,0.00019726,2]
[313070772,1706717440867,-180.27136489,0.000199,2]
[313070773,1706717440876,-179.48176264,0.0002,2]
[313070774,1706717440885,-1200.08348294,0.0002,2]
[313070775,1706717440895,-323.57048434,0.0002,2]
[313070776,1706717440904,-155.01240124,0.0002,2]
[313070777,1706717440914,-154.98450155,0.0002,2]
[313070778,1706717440923,-500.0,0.0002,2]
[313070779,1706717440932,-500.0,0.0002,2]
[313070780,1706717440941,-549.68,0.0002,2]
[313070781,1706717440950,-547.21,0.0002,2]
[313070782,1706717440959,-500.0,0.0002,2]
[313070783,1706717440968,-1015.49,0.0002,2]
[313070784,1706717440980,-500.0,0.0002,2]
[313070785,1706717440989,-500.0,0.0002,2]
[313070786,1706717440999,-500.0,0.0002,2]
[313070787,1706717441008,-500.0,0.0002,2]
[313070788,1706717441017,-500.0,0.0002,2]
[313070789,1706717441026,-500.0,0.0002,2]
[313070790,1706717441035,-500.0,0.0002,2]
[313070791,1706717441045,-1756.54,0.0002,2]
[313070792,1706717441054,-500.0,0.0002,2]
[313070793,1706717441063,-500.0,0.0002,2]
[313070794,1706717441072,-500.0,0.0002,2]
[313070796,1706717441082,-2759.56,0.0002,2]
[313070797,1706717441091,-500.0,0.0002,2]
[313070799,1706717441100,-991.7,0.0002,2]
[313070801,1706717441109,-1055.35,0.0002,2]
[313070803,1706717441119,-1130.01,0.0002,2]
[313070805,1706717441128,-500.0,0.0002,2]
[313070807,1706717441137,-500.0,0.0002,2]
[313070808,1706717441146,-582.28,0.0002,2]
[313070810,1706717441155,-1425.27,0.0002,2]
[313070811,1706717441166,-909.16,0.0002,2]
[313070812,1706717441175,-673.78,0.0002,2]
[313070813,1706717441185,-500.0,0.0002,2]
[313070814,1706717441195,-1917.42,0.0002,2]
[313070815,1706717441204,-1182.09,0.0002,2]
[313070817,1706717441214,-500.0,0.0002,2]
[313070818,1706717441225,-1150.52,0.0002,2]
[313070819,1706717441234,-1427.26,0.0002,2]
[313070820,1706717441243,-500.0,0.0002,2]
[313070821,1706717441252,-500.0,0.0002,2]
[313070822,1706717441262,-1824.57,0.0002,2]
[313070823,1706717441271,-3691.58,0.0002,2]
[313070824,1706717441283,-1853.52,0.0002,2]
[313070825,1706717441293,-500.0,0.0002,2]
[313070826,1706717441308,-500.0,0.0002,2]
[313070827,1706717441317,-500.0,0.0002,2]
[313070828,1706717441328,-381.07651183,0.0002,2]
[313070829,1706717441338,-500.0,0.0002,2]
[313070831,1706717441347,-186.8035473,0.0002,2]
[313070833,1706717441356,-13584.93,0.0002,2]
[313070834,1706717441366,-544.72,0.0002,2]
[313070835,1706717441380,-821.54,0.0002,2]
[313070836,1706717441389,-649.01,0.0002,2]
[313070837,1706717441399,-6888.74,0.0002,2]
[313070838,1706717441409,-500.0,0.0002,2]
[313070839,1706717441418,-656.29,0.0002,2]
[313070840,1706717441428,-6490.96,0.0002,2]
[313070841,1706717441437,-10101.24,0.0002,2]
[313070842,1706717441446,-1155.68,0.0002,2]
[313070843,1706717441455,-1175.27,0.0002,2]
[313070844,1706717441466,-3321.3,0.0002,2]
[313070845,1706717441475,-500.0,0.0002,2]
[313070846,1706717441485,-1024.47,0.0002,2]
[313070847,1706717441496,-3043.92,0.0002,2]
[313070848,1706717441505,-500.0,0.0002,2]
[313070849,1706717441514,-2729.74,0.0002,2]
[313070850,1706717441522,-1385.83,0.0002,2]
[313070851,1706717441532,-913.85,0.0002,2]
[313070852,1706717441618,-2327.8,0.0002,2]
[313070853,1706717441628,-500.0,0.0002,2]
[313070854,1706717441638,-508.12,0.0002,2]
[313070855,1706717441647,-500.0,0.00020273,2]
[313070856,1706717441656,-500.0,0.00020273,2]
[313070857,1706717441665,-549.68,0.00020273,2]
[313070858,1706717441674,-547.21,0.00020273,2]
[313070859,1706717441683,-500.0,0.00020273,2]
[313070860,1706717441692,-1015.49,0.00020273,2]
[313070861,1706717441701,-500.0,0.00020273,2]
[313070862,1706717441710,-373.33511928,0.00020273,2]
[313070863,1706717441720,-500.0,0.00020273,2]
[313070864,1706717441730,-507.49216995,0.00020273,2]
[313070865,1706717441738,-500.0,0.00020273,2]
[313070866,1706717441748,-500.0,0.00020273,2]
[313070867,1706717441758,-500.0,0.00020273,2]
[313070868,1706717441767,-1756.54,0.00020273,2]
[313070869,1706717441776,-500.0,0.00020273,2]
[313070870,1706717441785,-500.0,0.00020273,2]
[313070871,1706717441794,-500.0,0.00020273,2]
[313070872,1706717441804,-2759.56,0.00020273,2]
[313070873,1706717441813,-500.0,0.00020273,2]
[313070874,1706717441822,-991.7,0.00020273,2]
[313070875,1706717441831,-1055.35,0.00020273,2]
[313070876,1706717441839,-1130.01,0.00020273,2]
[313070877,1706717441849,-500.0,0.00020273,2]
[313070878,1706717441858,-500.0,0.00020273,2]
[313070879,1706717441867,-582.28,0.00020273,2]
[313070880,1706717441876,-1425.27,0.00020273,2]
[313070881,1706717441885,-909.16,0.00020273,2]
[313070882,1706717441894,-673.78,0.00020273,2]
[313070883,1706717441903,-500.0,0.00020273,2]
[313070884,1706717441912,-1917.42,0.00020273,2]
[313070885,1706717441922,-1182.09,0.00020273,2]
[313070886,1706717441931,-449.15887531,0.00020273,2]
[313070887,1706717441942,-1150.52,0.00020273,2]
[313070888,1706717441951,-1427.26,0.00020273,2]
[313070889,1706717441959,-500.0,0.00020273,2]
[313070890,1706717441969,-500.0,0.00020273,2]
[313070891,1706717441979,-1824.57,0.00020273,2]
[313070892,1706717441988,-3691.58,0.00020273,2]
[313070893,1706717441998,-1853.52,0.00020273,2]
[313070894,1706717442008,-500.0,0.00020273,2]
[313070895,1706717442017,-500.0,0.00020273,2]
[313070896,1706717442026,-500.0,0.00020273,2]
[313070897,1706717442035,-500.0,0.00020273,2]
[313070898,1706717442044,-13584.93,0.00020273,2]
[313070899,1706717442054,-544.72,0.00020273,2]
[313070900,1706717442063,-821.54,0.00020273,2]
[313070901,1706717442073,-649.01,0.00020273,2]
[313070902,1706717442082,-6888.74,0.00020273,2]
[313070903,1706717442091,-500.0,0.00020273,2]
[313070904,1706717442100,-656.29,0.00020273,2]
[313070905,1706717442108,-6490.96,0.00020273,2]
[313070906,1706717442118,-10101.24,0.00020273,2]
[313070907,1706717442127,-1155.68,0.00020273,2]
[313070908,1706717442136,-1175.27,0.00020273,2]
[313070909,1706717442146,-3321.3,0.00020273,2]
[313070910,1706717442155,-500.0,0.00020273,2]
[313070911,1706717442165,-1024.47,0.00020273,2]
[313070912,1706717442175,-3043.92,0.00020273,2]
[313070913,1706717442185,-500.0,0.00020273,2]
[313070914,1706717442194,-2729.74,0.00020273,2]
[313070915,1706717442204,-1385.83,0.00020273,2]
[313070916,1706717442214,-913.85,0.00020273,2]
[313070917,1706717442228,-2327.8,0.00020273,2]
[313070918,1706717442238,-500.0,0.00020273,2]
[313070919,1706717442247,-508.12,0.00020273,2]
[313070920,1706717442257,-500.0,0.00020547,2]
[313070921,1706717442266,-500.0,0.00020547,2]
[313070922,1706717442275,-549.68,0.00020547,2]
[313070923,1706717442292,-547.21,0.00020547,2]
[313070924,1706717442301,-500.0,0.00020547,2]
[313070925,1706717442311,-1015.49,0.00020547,2]
[313070926,1706717442320,-500.0,0.00020547,2]
[313070927,1706717442331,-500.0,0.00020547,2]
[313070928,1706717442340,-500.0,0.00020547,2]
[313070929,1706717442349,-305.4224279,0.00020547,2]
[313070930,1706717442358,-500.0,0.00020547,2]
[313070931,1706717442367,-1756.54,0.00020547,2]
[313070932,1706717442379,-500.0,0.00020547,2]
[313070933,1706717442388,-500.0,0.00020547,2]
[313070934,1706717442398,-500.0,0.00020547,2]
[313070935,1706717442407,-2759.56,0.00020547,2]
[313070936,1706717442416,-500.0,0.00020547,2]
[313070937,1706717442425,-991.7,0.00020547,2]
[313070938,1706717442436,-1055.35,0.00020547,2]
[313070939,1706717442446,-1130.01,0.00020547,2]
[313070940,1706717442455,-500.0,0.00020547,2]
[313070941,1706717442464,-500.0,0.00020547,2]
[313070942,1706717442475,-582.28,0.00020547,2]
[313070943,1706717442484,-1425.27,0.00020547,2]
[313070944,1706717442495,-909.16,0.00020547,2]
[313070945,1706717442504,-673.78,0.00020547,2]
[313070946,1706717442513,-500.0,0.00020547,2]
[313070947,1706717442522,-1917.42,0.00020547,2]